Cheque Ref,Cost Centre Description,Cost Centre Code,Nominal Code Description,Nominal Code,Transaction Detail,Date Paid,Own Ref No,Net,VAT,Total,Amount,Payee Name
DD,Policy & Process,100,Rent,4240,Office rent 1/10 to 31/10,01/10/2019,247,425,85,510,425,CWAC
BACS,Community,110,War Memorial,4440,Stage 2 payment,10/10/2019,252,2902.5,580.5,3483,2902.5,Harrison Design Development
BACS,Policy & Process,100,PAYE and NI,4030,PAYE,15/10/2019,259,1612.8,0,1612.8,1612.8,HMRC
BACS,Policy & Process,100,PAYE and NI,4030,Salary,15/10/2019,260,2180.21,0,2180.21,2180.21,Jo O'Donoghue
BACS,Policy & Process,100,Pension,4040,Staff pensions,15/10/2019,261,1335.69,0,1335.69,1335.69,Cheshire Pensions
BACS,Policy & Process,100,Staff Salary,4000,Salary,15/10/2019,262,876.02,0,876.02,876.02,E Kenny
BACS,Policy & Process,100,Staff Salary,4000,Salary,15/10/2019,263,583.41,0,583.41,583.41,L Rimmer
BACS,Policy & Process,100,Staff Salary,4000,Salary,15/10/2019,264,683.64,0,683.64,683.64,M Moran
BACS,Policy & Process,100,Staff Salary,4000,Salary,15/10/2019,265,840.68,0,840.68,840.68,J Bowe
BACS,Community,110,War Memorial,4440,Interim payment 1,23/10/2019,277,20676.17,4135.23,24811.4,20676.17,Walker Conservation
BACS,Cemetery,130,Maintenance,4320,Cemetery works,23/10/2019,278,541,108.2,649.2,541,Northwich Town Council
BACS,Cemetery,130,Rates,4250,Non Dom Rates Cemetery,29/10/2019,292,700,0,700,700,CWAC
BACS,Community,110,Rent,4240,Room hire - Drive Safely,29/10/2019,293,500,0,500,500,Frodsham Golf Club
BACS,Policy & Process,100,Staff Salary,4000,Final salary,31/10/2019,298,661.12,0,661.12,661.12,L Rimmer
BACS,Community,110,War Memorial,4440,War memorial,01/11/2019,306,2140,428,2568,2140,KPS Architects Ltd
BACS,Events,140,Chrismas Festival,4730,Xmas Festival centre spread,01/11/2019,307,600,120,720,600,Orbit News Ltd
BACS,Policy & Process,100,Rent,4240,Office rent,01/11/2019,309,425,85,510,425,CWAC
BACS,Community,110,War Memorial,4440,War memorial,11/11/2019,320,15825.18,3165.04,18990.22,15825.18,Walker Conservation
BACS,Community,110,Xmas Lights,4420,Repairs Xmas lights,11/11/2019,321,890,178,1068,890,KDE
BACS,Capital,150,Burial Ground Extension,4570,Cemetery extension,11/11/2019,322,1573.75,314.75,1888.5,1573.75,Harrison Design Development
BACS,Community,110,Xmas Lights,4420,Xmas lights,11/11/2019,324,977.61,195.52,1173.13,977.61,KDE
BACS,Policy & Process,100,Staff Salary,4000,Salary,15/11/2019,312,945.84,0,945.84,945.84,J Bowe
BACS,Policy & Process,100,Staff Salary,4000,Salary,15/11/2019,313,876.02,0,876.02,876.02,E Kenny
BACS,Policy & Process,100,Staff Salary,4000,Salary,15/11/2019,315,2180.41,0,2180.41,2180.41,Jo O'Donoghue
BACS,Policy & Process,100,Staff Salary,4000,Pensions,15/11/2019,316,1369.01,0,1369.01,1369.01,Cheshire Pensions
BACS,Policy & Process,100,PAYE and NI,4030,PAYE/NI,15/11/2019,317,1613.81,0,1613.81,1613.81,HMRC
BACS,Environment,120,Maintenance,4320,Crown lift trees,21/11/2019,335,1150,230,1380,1150,Northwich Town Council
BACS,Policy & Process,100,WW1,4830,Shelly Signs - WW1,21/11/2019,336,1065,213,1278,1065,Shelly Signs
CH207326,Policy & Process,100,Grants Paid,4220,Grant payment,29/11/2019,347,860,0,860,860,Mid Cheshire MIND
CH,Policy & Process,100,Grants Paid,4220,Grant payment,29/11/2019,348,700,0,700,700,Coleman Flaherty
DD,Policy & Process,100,Rent,4240,Office rent,02/12/2019,352,425,85,510,425,CWAC
BACS,Environment,120,Maintenance,4320,Maintenance works to SLA,04/12/2019,353,3512.07,702.41,4214.48,3512.07,Lowther Forestry Group Ltd
BACS,Community,110,Maintenance,4320,Repairs to lights,05/12/2019,355,1350,270,1620,1350,KDE
207325,Policy & Process,100,Grants Paid,4220,Grant,11/12/2019,362,1500,0,1500,1500,3rd Frodsham Sea Scouts
207335,Policy & Process,100,Grants Paid,4220,Grant payment,12/12/2019,361,1500,0,1500,1500,Frodsham Methodist Church
BACS,Policy & Process,100,Pension,4040,November contribution,12/12/2019,364,1122.27,0,1122.27,1122.27,Cheshire Pensions
BACS,Policy & Process,100,Staff Salary,4000,FTC-SALARY,12/12/2019,366,736.32,0,736.32,736.32,M Moran
BACS,Policy & Process,100,Staff Salary,4000,FTC-SALARY,12/12/2019,367,876.02,0,876.02,876.02,E Kenny
BACS,Policy & Process,100,PAYE and NI,4030,November payment,12/12/2019,368,1333.27,0,1333.27,1333.27,HMRC
BACS,Policy & Process,100,Staff Salary,4000,Jo O'Donoghue,12/12/2019,369,2180.21,0,2180.21,2180.21,Jo O'Donoghue
BACS,Community,110,War Memorial,4440,Interim payment 3,19/12/2019,370,10746.49,2149.3,12895.79,10746.49,Walker Conservation
BACS,Capital,150,Burial Ground Extension,4570,Inv 4,19/12/2019,376,1322.5,264.5,1587,1322.5,Harrison Design Development
BACS,Events,140,Chrismas Festival,4730,Road closure,19/12/2019,377,1250,250,1500,1250,Bluearrow Traffic Mgt Ltd
BACS,Events,140,Chrismas Festival,4730,Electric supply Brio,19/12/2019,380,1385.04,277.01,1662.05,1385.04,KDE
BACS,Events,140,Chrismas Festival,4730,LaserFire,19/12/2019,383,1600,320,1920,1600,LaserFire
207338,Community,110,Over 70s,4430,97 Over 70s,24/12/2019,386,970,0,970,970,Cowards Butchers
DD,Policy & Process,100,Rent,4240,Office rent 1/10/19 to 31/10/1,01/10/2019,243,425,85,510,425,CWAC
